lending/lending_fUSD_20250122
["ID","MTS","AMOUNT","RATE_DAILY","PERIOD"]
[349925026,1737508233745,-154.33332251,0.00021738,2]
[349925027,1737508233756,-2500.0,0.00021738,2]
[349925028,1737508233770,-687.42335668,0.0002176,2]
[349925029,1737508233791,-490.62,0.0002176,2]
[349925030,1737508233805,-1128.48254332,0.0002176,2]
[349925031,1737508233816,-1864.90933846,0.00021764,2]
[349925032,1737508233826,-500.0,0.00021768,2]
[349925033,1737508233837,-264.11617374,0.00021768,2]
[349925034,1737508233847,-500.0,0.00021768,2]
[349925035,1737508233857,-500.0,0.00021768,2]
[349925036,1737508233868,-500.0,0.00021768,2]
[349925037,1737508233878,-500.0,0.00021768,2]
[349925038,1737508233889,-500.0,0.00021768,2]
[349925039,1737508233899,-500.0,0.00021768,2]
[349925040,1737508233910,-500.0,0.00021768,2]
[349925041,1737508233921,-500.0,0.00021768,2]
[349925042,1737508233931,-500.0,0.00021768,2]
[349925043,1737508233943,-500.0,0.00021768,2]
[349925044,1737508233953,-517.69,0.00021768,2]
[349925045,1737508233964,-500.0,0.00021768,2]
[349925046,1737508233974,-154.33332251,0.00021779,2]
[349925047,1737508233983,-636.15871155,0.00021799,2]
[349925048,1737508233993,-500.0,0.00021799,2]
[349925049,1737508234008,-500.0,0.00021799,2]
[349925050,1737508234027,-500.0,0.00021799,2]
[349925051,1737508234038,-500.0,0.00021799,2]
[349925052,1737508234050,-500.0,0.00021799,2]
[349925053,1737508234060,-500.0,0.00021799,2]
[349925054,1737508234072,-500.0,0.00021799,2]
[349925055,1737508234083,-500.0,0.00021799,2]
[349925056,1737508234093,-272.95567747,0.00021799,2]
[349925057,1737508234102,-500.0,0.00021799,2]
[349925058,1737508234113,-240.76340065,0.00021799,2]
[349925059,1737508234123,-500.0,0.00021799,2]
[349925060,1737508234133,-500.0,0.00021799,2]
[349925061,1737508234144,-525.63298201,0.00021799,2]
[349925062,1737508234156,-500.0,0.00021799,2]
[349925063,1737508234165,-500.0,0.00021799,2]
[349925064,1737508234176,-500.0,0.00021799,2]
[349925065,1737508234186,-3000.0,0.00021799,2]
[349925066,1737508234196,-754.0,0.000218,7]
[349925067,1737508234206,-3954.0,0.000218,2]
[349925068,1737508234217,-3688.9978,0.000218,2]
[349925069,1737508234227,-4713.4777,0.000218,2]
[349925070,1737508234237,-3899.7869,0.000218,2]
[349925071,1737508234246,-154.33332251,0.00021819,2]
[349925072,1737508234255,-1068.82611279,0.00021838,2]
[349925079,1737508238238,-2205.01031525,0.00021838,2]
[349925080,1737508238273,-488.45942115,0.00021838,2]
[349925081,1737508238285,-670.435461,0.00021838,2]
[349925082,1737508238296,-826.5321856,0.00021838,2]
[349925083,1737508238380,-7.87198372,0.00021838,2]
[349925084,1737508238389,-275.06101628,0.00021838,2]
[349925085,1737508238489,-224.93898372,0.00021838,2]
[349925086,1737508238499,-500.0,0.00021838,2]
[349925087,1737508238509,-500.0,0.00021838,2]
[349925088,1737508238520,-500.0,0.00021838,2]
[349925089,1737508238530,-500.0,0.00021838,2]
[349925090,1737508238541,-500.0,0.00021838,2]
[349925091,1737508238551,-500.0,0.00021838,2]
[349925092,1737508238560,-500.0,0.00021838,2]
[349925093,1737508238571,-500.0,0.00021838,2]
[349925094,1737508238580,-500.0,0.00021838,2]
[349925095,1737508238590,-500.0,0.00021838,2]
[349925096,1737508238600,-500.0,0.00021838,2]
[349925097,1737508238609,-500.0,0.00021838,2]
[349925098,1737508238620,-500.0,0.00021838,2]
[349925099,1737508238629,-500.0,0.00021838,2]
[349925100,1737508238639,-500.0,0.00021838,2]
[349925101,1737508238648,-500.0,0.00021838,2]
[349925102,1737508238657,-500.0,0.00021838,2]
[349925103,1737508238667,-500.0,0.00021838,2]
[349925104,1737508238676,-500.0,0.00021838,2]
[349925105,1737508238686,-500.0,0.00021838,2]
[349925106,1737508238695,-500.0,0.00021838,2]
[349925107,1737508238705,-286.06173651,0.00021838,2]
[349925145,1737508240247,-213.93826349,0.00021838,2]
[349925146,1737508240257,-500.0,0.00021838,2]
[349925147,1737508240266,-500.0,0.00021838,2]
[349925148,1737508240277,-500.0,0.00021838,2]
[349925149,1737508240287,-500.0,0.00021838,2]
[349925150,1737508240296,-500.0,0.00021838,2]
[349925151,1737508240306,-500.0,0.00021838,2]
[349925152,1737508240316,-462.41514872,0.00021838,2]
[349925153,1737508240328,-37.58485128,0.00021838,2]
[349925154,1737508240337,-500.0,0.00021838,2]
[349925155,1737508240347,-500.0,0.00021838,2]
[349925156,1737508240357,-500.0,0.00021838,2]
[349925157,1737508240367,-500.0,0.00021838,2]
[349925158,1737508240376,-500.0,0.00021838,2]
[349925159,1737508240386,-500.0,0.00021838,2]
[349925160,1737508240395,-500.0,0.00021838,2]
[349925161,1737508240405,-500.0,0.00021838,2]
[349925162,1737508240415,-500.0,0.00021838,2]
[349925163,1737508240424,-500.0,0.00021838,2]
[349925164,1737508240434,-500.0,0.00021838,2]
[349925165,1737508240444,-500.0,0.00021838,2]
[349925166,1737508240454,-500.0,0.00021838,2]
[349925167,1737508240463,-500.0,0.00021838,2]
[349925168,1737508240473,-455.16324283,0.00021838,2]
[349925169,1737508240485,-44.83675717,0.00021838,2]
[349925170,1737508240494,-500.0,0.00021838,2]
[349925171,1737508240503,-119.31925633,0.00021838,2]
[349925172,1737508240515,-380.68074367,0.00021838,2]
[349925173,1737508240526,-274.46588583,0.00021838,2]
[349925174,1737508240543,-225.53411417,0.00021838,2]
[349925175,1737508240553,-500.0,0.00021838,2]
[349925176,1737508240562,-500.0,0.00021838,2]
[349925177,1737508240571,-500.0,0.00021838,2]
[349925178,1737508240580,-500.0,0.00021838,2]
[349925179,1737508240590,-500.0,0.00021838,2]
[349925180,1737508240600,-500.0,0.00021838,2]
[349925181,1737508240609,-500.0,0.00021838,2]
[349925182,1737508240618,-500.0,0.00021838,2]
[349925183,1737508240627,-500.0,0.00021838,2]
[349925184,1737508240636,-500.0,0.00021838,2]
[349925185,1737508240645,-500.0,0.00021838,2]
[349925186,1737508240655,-500.0,0.00021838,2]
[349925187,1737508240664,-500.0,0.00021838,2]
[349925188,1737508240673,-500.0,0.00021838,2]
[349925189,1737508240682,-500.0,0.00021838,2]
[349925190,1737508240691,-952.0,0.00021838,2]
[349925191,1737508240700,-500.0,0.00021838,2]
[349925192,1737508240710,-500.0,0.00021838,2]
[349925193,1737508240720,-500.0,0.00021838,2]
[349925194,1737508240730,-500.0,0.00021838,2]
[349925195,1737508240743,-500.0,0.00021838,2]
[349925196,1737508240754,-500.0,0.00021838,2]
[349925197,1737508240763,-500.0,0.00021838,2]
[349925198,1737508240772,-500.0,0.00021838,2]
[349925199,1737508240782,-363.4424602,0.00021838,2]
[349925200,1737508240794,-136.5575398,0.00021838,2]
[349925201,1737508240803,-500.0,0.00021838,2]
[349925202,1737508240812,-225.69243047,0.00021838,2]
[349925203,1737508240824,-274.30756953,0.00021838,2]
[349925204,1737508240833,-288.73093046,0.00021838,2]
[349925205,1737508240856,-150.0,0.00021796,2]
[349925206,1737508240865,-211.26906954,0.00021838,2]
[349925207,1737508240875,-205.57231644,0.00021838,2]
[349925208,1737508240886,-294.42768356,0.00021838,2]
[349925209,1737508240895,-500.0,0.00021838,2]
[349925210,1737508240905,-352.94526213,0.00021838,2]
[349925211,1737508240916,-147.05473787,0.00021838,2]
[349925212,1737508240926,-500.0,0.00021838,2]
[349925213,1737508240935,-500.0,0.00021838,2]
[349925214,1737508240945,-500.0,0.00021838,2]
[349925215,1737508240954,-500.0,0.00021838,2]
[349925216,1737508240963,-500.0,0.00021838,2]
[349925217,1737508240972,-500.0,0.00021838,2]
[349925218,1737508240981,-500.0,0.00021838,2]
[349925219,1737508240991,-500.0,0.00021838,2]
[349925220,1737508241001,-500.0,0.00021838,2]
[349925221,1737508241011,-500.0,0.00021838,2]
[349925222,1737508241025,-500.0,0.00021838,2]
[349925223,1737508241034,-345.7403976,0.00021838,2]
[349925224,1737508241046,-154.2596024,0.00021838,2]
[349925225,1737508241055,-500.0,0.00021838,2]
[349925226,1737508241066,-500.0,0.00021838,2]
[349925227,1737508241075,-500.0,0.00021838,2]
[349925228,1737508241085,-500.0,0.00021838,2]
[349925229,1737508241095,-500.0,0.00021838,2]
[349925230,1737508241105,-500.0,0.00021838,2]
[349925231,1737508241115,-500.0,0.00021838,2]
[349925232,1737508241126,-500.0,0.00021838,2]
[349925233,1737508241135,-500.0,0.00021838,2]
[349925234,1737508241145,-500.0,0.00021838,2]
[349925235,1737508241155,-500.0,0.00021838,2]
[349925236,1737508241164,-500.0,0.00021838,2]
[349925237,1737508241174,-500.0,0.00021838,2]
[349925238,1737508241184,-500.0,0.00021838,2]
[349925239,1737508241194,-500.0,0.00021838,2]
[349925240,1737508241203,-500.0,0.00021838,2]
[349925241,1737508241213,-500.0,0.00021838,2]
[349925242,1737508241223,-500.0,0.00021838,2]
[349925243,1737508241232,-500.0,0.00021838,2]
[349925244,1737508241242,-500.0,0.00021838,2]
[349925245,1737508241251,-500.0,0.00021838,2]
[349925246,1737508241260,-500.0,0.00021838,2]
[349925247,1737508241272,-500.0,0.00021838,2]
[349925248,1737508241281,-500.0,0.00021838,2]
[349925249,1737508241290,-500.0,0.00021838,2]
[349925250,1737508241299,-500.0,0.00021838,2]
[349925251,1737508241309,-500.0,0.00021838,2]
[349925252,1737508241318,-500.0,0.00021838,2]
[349925253,1737508241327,-500.0,0.00021838,2]
[349925254,1737508241337,-500.0,0.00021838,2]
[349925255,1737508241347,-500.0,0.00021838,2]
[349925256,1737508241356,-500.0,0.00021838,2]
[349925257,1737508241365,-500.0,0.00021838,2]
[349925258,1737508241375,-500.0,0.00021838,2]
[349925259,1737508241384,-500.0,0.00021838,2]
[349925260,1737508241396,-500.0,0.00021838,2]
[349925261,1737508241406,-500.0,0.00021838,2]
[349925262,1737508241416,-500.0,0.00021838,2]
[349925263,1737508241426,-500.0,0.00021838,2]
[349925264,1737508241435,-500.0,0.00021838,2]
[349925265,1737508241445,-500.0,0.00021838,2]
[349925266,1737508241455,-500.0,0.00021838,2]
[349925267,1737508241464,-500.0,0.00021838,2]
[349925268,1737508241475,-500.0,0.00021838,2]
[349925269,1737508241527,-500.0,0.00021838,2]
[349925270,1737508241537,-500.0,0.00021838,2]
[349925271,1737508241558,-500.0,0.00021838,2]
[349925272,1737508241567,-500.0,0.00021838,2]
[349925273,1737508241576,-500.0,0.00021838,2]
[349925274,1737508241585,-500.0,0.00021838,2]
[349925275,1737508241595,-500.0,0.00021838,2]
[349925276,1737508241605,-500.0,0.00021838,2]
[349925277,1737508241615,-500.0,0.00021838,2]
[349925278,1737508241624,-500.0,0.00021838,2]
[349925279,1737508241633,-500.0,0.00021838,2]
[349925280,1737508241642,-500.0,0.00021838,2]
[349925281,1737508241652,-500.0,0.00021838,2]
[349925282,1737508241661,-500.0,0.00021838,2]
[349925283,1737508241671,-500.0,0.00021838,2]
[349925284,1737508241680,-500.0,0.00021838,2]
[349925285,1737508241690,-500.0,0.00021838,2]
[349925286,1737508241701,-500.0,0.00021838,2]
[349925287,1737508241710,-500.0,0.00021838,2]
[349925288,1737508241719,-500.0,0.00021838,2]
[349925289,1737508241728,-500.0,0.00021838,2]
[349925290,1737508241737,-500.0,0.00021838,2]
[349925291,1737508241746,-500.0,0.00021838,2]
[349925292,1737508241755,-500.0,0.00021838,2]
[349925293,1737508241764,-500.0,0.00021838,2]
[349925294,1737508241774,-500.0,0.00021838,2]
[349925295,1737508241783,-500.0,0.00021838,2]
[349925296,1737508241791,-500.0,0.00021838,2]
[349925297,1737508241800,-500.0,0.00021838,2]
[349925298,1737508241809,-313.7,0.00021853,2]
[349925299,1737508241819,-313.7,0.00021853,2]
[349925300,1737508241827,-313.7,0.00021853,2]
[349925301,1737508241836,-313.7,0.00021853,2]
[349925302,1737508241845,-313.7,0.00021853,2]
[349925303,1737508241854,-313.7,0.00021853,2]
[349925304,1737508241864,-313.7,0.00021853,2]
[349925305,1737508241873,-500.0,0.00021858,2]
[349925306,1737508241882,-154.33332251,0.0002186,2]
[349925307,1737508241891,-210.5197745,0.0002186,2]
[349925308,1737508241900,-533.400475,0.0002186,2]
[349925309,1737508241909,-741.51,0.00021861,2]
[349925310,1737508241927,-500.0,0.00021861,2]
[349925311,1737508241937,-500.0,0.00021861,2]
[349925312,1737508241946,-1687.88,0.00021861,2]
[349925313,1737508241955,-500.0,0.00021861,2]
[349925314,1737508241965,-904.73,0.00021861,2]
[349925315,1737508241974,-1345.08,0.00021861,2]
[349925316,1737508241984,-819.62,0.00021861,2]
[349925317,1737508241993,-911.07,0.00021861,2]
[349925318,1737508242003,-500.0,0.00021861,2]
[349925319,1737508242013,-638.46,0.00021861,2]
[349925320,1737508242026,-500.0,0.00021861,2]
[349925321,1737508242035,-702.79,0.00021861,2]
[349925322,1737508242045,-1640.74,0.00021861,2]
[349925323,1737508242055,-1641.43,0.00021861,2]
[349925324,1737508242065,-943.38,0.00021861,2]
[349925325,1737508242075,-507.68,0.00021861,2]
[349925326,1737508242084,-1876.42,0.00021861,2]
[349925327,1737508242094,-500.0,0.00021861,2]
[349925328,1737508242104,-500.0,0.00021861,2]
[349925329,1737508242114,-500.0,0.00021861,2]
[349925330,1737508242124,-521.14,0.00021861,2]
[349925331,1737508242133,-500.0,0.00021861,2]
[349925332,1737508242143,-725.79,0.00021861,2]
[349925333,1737508242153,-500.0,0.00021861,2]
[349925334,1737508242162,-1060.42,0.00021861,2]
[349925335,1737508242172,-500.0,0.00021861,2]
[349925336,1737508242182,-86742.60392838,0.00021861,2]
[349925337,1737508242192,-500.0,0.00021861,2]
[349925338,1737508242202,-500.0,0.00021862,2]
[349925339,1737508242211,-862.085452,0.00021862,2]
[349925340,1737508242220,-635.16,0.00021862,2]
[349925341,1737508242229,-330.179543,0.00021862,2]
[349925342,1737508242238,-1474.05,0.00021862,2]
[349925343,1737508242247,-500.0,0.00021862,2]
[349925344,1737508242257,-603.76,0.00021862,2]
[349925345,1737508242267,-808.11,0.00021862,2]
[349925346,1737508242278,-840.52,0.00021862,2]
[349925347,1737508242288,-1966.07,0.00021862,2]
[349925348,1737508242297,-546.97,0.00021862,2]
[349925349,1737508242307,-500.0,0.00021862,2]
[349925350,1737508242316,-500.0,0.00021862,2]
[349925351,1737508242325,-651.9,0.00021862,2]
[349925352,1737508242335,-877.91,0.00021862,2]
[349925353,1737508242343,-520.44,0.00021862,2]
[349925354,1737508242352,-1023.1,0.00021862,2]
[349925355,1737508242362,-964.71,0.00021862,2]
[349925356,1737508242373,-1047.89,0.00021862,2]
[349925357,1737508242383,-1241.96,0.00021862,2]
[349925358,1737508242392,-2222.89,0.00021862,2]
[349925359,1737508242402,-500.0,0.00021862,2]
[349925360,1737508242411,-2483.78,0.00021862,2]
[349925361,1737508242420,-526.6,0.00021862,2]
[349925362,1737508242430,-545.46,0.00021862,2]
[349925363,1737508242439,-500.0,0.00021862,2]
[349925364,1737508242449,-1318.05,0.00021862,2]
[349925365,1737508242458,-1083.43,0.00021862,2]
[349925366,1737508242467,-923.5,0.00021862,2]
[349925367,1737508242477,-1019664.01689246,0.00021863,2]
[349925368,1737508242486,-500.0,0.00021863,2]
[349925369,1737508242495,-716.56,0.00021863,2]
[349925370,1737508242505,-338.94,0.00021863,2]
[349925371,1737508242514,-500.0,0.00021863,2]
[349925372,1737508242524,-500.0,0.00021863,2]
[349925373,1737508242534,-705.52,0.00021863,2]
[349925374,1737508242544,-500.0,0.00021863,2]
[349925375,1737508242553,-536.14,0.00021863,2]
[349925376,1737508242563,-500.0,0.00021863,2]
[349925377,1737508242573,-437.12,0.00021863,2]
[349925378,1737508242583,-500.0,0.00021863,2]
[349925379,1737508242594,-500.0,0.00021863,2]
[349925380,1737508242604,-500.0,0.00021863,2]
[349925381,1737508242613,-500.0,0.00021863,2]
[349925382,1737508242622,-500.0,0.00021863,2]
[349925383,1737508242631,-500.0,0.00021863,2]
[349925384,1737508242641,-500.0,0.00021863,2]
[349925385,1737508242650,-500.0,0.00021863,2]
[349925386,1737508242660,-500.0,0.00021863,2]
[349925387,1737508242669,-500.0,0.00021863,2]
[349925388,1737508242679,-500.0,0.00021863,2]
[349925389,1737508242688,-1621.71,0.00021863,2]
[349925390,1737508242698,-500.0,0.00021863,2]
[349925391,1737508242707,-264.9108162,0.00021863,2]
[349925392,1737508242717,-500.0,0.00021863,2]
[349925393,1737508242725,-500.0,0.00021863,2]
[349925394,1737508242734,-456.15929262,0.00021863,2]
[349925395,1737508242744,-500.0,0.00021863,2]
[349925396,1737508242754,-500.0,0.00021863,2]
[349925397,1737508242764,-500.0,0.00021863,2]
[349925398,1737508242774,-500.0,0.00021863,2]
[349925399,1737508242783,-455.84519385,0.00021863,2]
[349925400,1737508242793,-500.0,0.00021863,2]
[349925401,1737508242802,-500.0,0.00021863,2]
[349925402,1737508242811,-500.0,0.00021863,2]
[349925403,1737508242821,-500.0,0.00021863,2]
[349925404,1737508242831,-500.0,0.00021863,2]
[349925405,1737508242840,-500.0,0.00021863,2]
[349925406,1737508242850,-500.0,0.00021863,2]
[349925407,1737508242863,-500.0,0.00021863,2]
[349925408,1737508242873,-500.0,0.00021863,2]
[349925409,1737508242883,-500.0,0.00021863,2]
[349925410,1737508242892,-500.0,0.00021863,2]
[349925411,1737508242902,-500.0,0.00021863,2]
[349925412,1737508242912,-500.0,0.00021863,2]
[349925413,1737508242921,-500.0,0.00021863,2]
[349925414,1737508242931,-500.0,0.00021863,2]
[349925415,1737508242941,-500.0,0.00021863,2]
[349925416,1737508242951,-500.0,0.00021863,2]
[349925417,1737508242960,-500.0,0.00021863,2]
[349925418,1737508242970,-500.0,0.00021863,2]
[349925419,1737508242980,-322.48757551,0.00021863,2]
[349925420,1737508242989,-500.0,0.00021863,2]
[349925421,1737508242999,-500.0,0.00021863,2]
[349925422,1737508243009,-500.0,0.00021863,2]
[349925423,1737508243025,-500.0,0.00021863,2]
[349925424,1737508243035,-500.0,0.00021863,2]
[349925425,1737508243045,-500.0,0.00021863,2]
[349925426,1737508243055,-500.0,0.00021863,2]
[349925427,1737508243068,-500.0,0.00021863,2]
[349925428,1737508243078,-500.0,0.00021863,2]
[349925429,1737508243087,-500.0,0.00021863,2]
[349925430,1737508243099,-500.0,0.00021863,2]
[349925431,1737508243109,-245.05171988,0.00021863,2]
[349925432,1737508243119,-500.0,0.00021863,2]
[349925433,1737508243129,-241.6502302,0.00021863,2]
[349925434,1737508243138,-500.0,0.00021863,2]
[349925435,1737508243148,-500.0,0.00021863,2]
[349925437,1737508243157,-500.0,0.00021863,2]
[349925439,1737508243167,-500.0,0.00021863,2]
[349925441,1737508243177,-500.0,0.00021863,2]
[349925443,1737508243187,-500.0,0.00021863,2]
[349925445,1737508243196,-500.0,0.00021863,2]
[349925447,1737508243206,-704.45,0.00021863,2]
[349925449,1737508243215,-500.0,0.00021863,2]
[349925451,1737508243225,-500.0,0.00021863,2]
[349925453,1737508243235,-500.0,0.00021863,2]
[349925455,1737508243245,-500.0,0.00021863,2]
[349925456,1737508243255,-513.61,0.00021863,2]
[349925457,1737508243264,-500.0,0.00021863,2]
[349925458,1737508243275,-500.0,0.00021863,2]
[349925459,1737508243285,-500.0,0.00021863,2]
[349925462,1737508243295,-500.0,0.00021863,2]
[349925464,1737508243304,-500.0,0.00021863,2]
[349925466,1737508243314,-569.64,0.00021863,2]
[349925467,1737508243323,-1293.22,0.00021863,2]
[349925469,1737508243333,-500.0,0.00021863,2]
[349925471,1737508243343,-717.08,0.00021863,2]
[349925473,1737508243353,-500.0,0.00021863,2]
[349925475,1737508243362,-500.0,0.00021863,2]
[349925477,1737508243372,-689.37,0.00021863,2]
[349925479,1737508243382,-500.0,0.00021863,2]
[349925481,1737508243392,-500.0,0.00021863,2]
[349925483,1737508243401,-500.0,0.00021863,2]
[349925485,1737508243410,-500.0,0.00021863,2]
[349925487,1737508243420,-1185.4,0.00021863,2]
[349925489,1737508243430,-500.0,0.00021863,2]
[349925490,1737508243439,-500.0,0.00021863,2]
[349925491,1737508243449,-757.11,0.00021863,2]
[349925492,1737508243458,-500.0,0.00021863,2]
[349925493,1737508243468,-500.0,0.00021863,2]
[349925494,1737508243485,-500.0,0.00021863,2]
[349925495,1737508243495,-503.33293654,0.00021863,2]
[349925496,1737508243505,-697.51,0.00021863,2]
[349925497,1737508243514,-500.0,0.00021863,2]
[349925498,1737508243526,-500.0,0.00021863,2]
[349925499,1737508243536,-500.0,0.00021863,2]
[349925500,1737508243547,-785.96,0.00021863,2]
[349925501,1737508243557,-500.0,0.00021863,2]
[349925502,1737508243567,-500.0,0.00021863,2]
[349925503,1737508243576,-500.0,0.00021863,2]
[349925504,1737508243586,-500.0,0.00021863,2]
[349925505,1737508243595,-500.0,0.00021863,2]
[349925506,1737508243605,-500.0,0.00021863,2]
[349925507,1737508243616,-511.64512988,0.00021863,2]
[349925508,1737508243626,-500.0,0.00021863,2]
[349925509,1737508243636,-500.0,0.00021863,2]
[349925510,1737508243645,-500.0,0.00021863,2]
[349925511,1737508243655,-500.0,0.00021863,2]
[349925512,1737508243666,-500.0,0.00021863,2]
[349925513,1737508243676,-500.0,0.00021863,2]
[349925514,1737508243687,-720.88,0.00021863,2]
[349925515,1737508243698,-502.01861872,0.00021863,2]
[349925516,1737508243709,-500.0,0.00021863,2]
[349925517,1737508243720,-532.2,0.00021863,2]
[349925518,1737508243731,-500.0,0.00021863,2]
[349925519,1737508243741,-289.77346684,0.00021863,2]
[349925520,1737508243751,-500.0,0.00021863,2]
[349925521,1737508243761,-183.11,0.00021863,2]
[349925522,1737508243772,-566.31,0.00021863,2]
[349925523,1737508243781,-500.0,0.00021863,2]
[349925524,1737508243790,-500.0,0.00021863,2]
[349925525,1737508243800,-449.8988192,0.00021863,2]
[349925526,1737508243809,-500.0,0.00021863,2]
[349925527,1737508243820,-500.0,0.00021863,2]
[349925528,1737508243830,-2566.06,0.00021863,2]
[349925529,1737508243841,-500.0,0.00021863,2]
[349925530,1737508243851,-500.0,0.00021863,2]
[349925531,1737508243862,-509.33173991,0.00021863,2]
[349925532,1737508243871,-500.0,0.00021863,2]
[349925533,1737508243881,-500.0,0.00021863,2]
[349925534,1737508243891,-500.0,0.00021863,2]
[349925535,1737508243902,-520.84519379,0.00021863,2]
[349925536,1737508243912,-521.28,0.00021863,2]
[349925537,1737508243922,-970.3,0.00021863,2]
[349925538,1737508243932,-500.0,0.00021863,2]
[349925539,1737508243942,-500.0,0.00021863,2]
[349925540,1737508243952,-545.17,0.00021863,2]
[349925541,1737508243962,-973.05,0.00021863,2]
[349925542,1737508243971,-2419.97,0.00021863,2]
[349925543,1737508243982,-500.0,0.00021863,2]
[349925544,1737508243992,-500.0,0.00021863,2]
[349925545,1737508244002,-5800.0,0.00021866,2]
[349925546,1737508244013,-500.0,0.00021868,2]
[349925547,1737508244026,-698.25,0.00021868,2]
[349925548,1737508244037,-643.81,0.00021868,2]
[349925549,1737508244047,-2084.53,0.00021868,2]
[349925550,1737508244056,-2181.24,0.00021868,2]
[349925551,1737508244066,-2391.85,0.00021868,2]
[349925552,1737508244076,-585.0,0.00021868,2]
[349925553,1737508244086,-500.0,0.00021868,2]
[349925554,1737508244097,-500.0,0.00021868,2]
[349925555,1737508244107,-1098.03,0.00021868,2]
[349925556,1737508244117,-500.0,0.00021868,2]
[349925557,1737508244127,-500.0,0.00021868,2]
[349925558,1737508244137,-651.72,0.00021868,2]
[349925559,1737508244147,-614.15,0.00021868,2]
[349925560,1737508244157,-656.43,0.00021868,2]
[349925561,1737508244167,-162.40838249,0.00021868,2]
[349925562,1737508244177,-526.49,0.00021868,2]
[349925563,1737508244187,-846.3,0.00021868,2]
[349925564,1737508244196,-772.4,0.00021868,2]
[349925565,1737508244207,-999.0,0.00021868,2]
[349925566,1737508244217,-620.0,0.00021868,2]
[349925567,1737508244226,-500.0,0.00021869,2]
[349925568,1737508244236,-540.18,0.00021869,2]
[349925569,1737508244247,-88903.45042504,0.00021869,2]
[349925570,1737508244257,-494287.69527089,0.0002187,2]
[349925571,1737508244278,-3004.07576998,0.0002187,2]
[349925572,1737508244290,-4805.55,0.0002187,2]
[349925573,1737508244310,-1458.84999932,0.0002187,2]
[349925574,1737508244635,-3000.0,0.00021838,2]
[349925575,1737508244646,-773.86630125,0.0002187,2]
[349925576,1737508244750,-5900.67521004,0.0002187,2]
[349925577,1737508244762,-5043.70352254,0.0002187,2]
[349925578,1737508244777,-3547.7542258,0.0002187,2]
[349925586,1737508246368,-826.165225,0.00021861,2]
[349925587,1737508246378,-2918.27953825,0.0002187,2]
[349925588,1737508246389,-2558.79021896,0.0002187,2]
[349925589,1737508246481,-500.0,0.00021863,2]
[349925590,1737508246490,-1391.79194104,0.0002187,2]
[349925698,1737508741015,209.71,0.00010137,2]
[349925722,1737509191102,-167.06947226,0.00018,2]
[349925898,1737509366088,-245.39601138,0.00018,2]
[349925904,1737509432431,-87.53451636,0.00018,2]
[349925905,1737509432441,-728.36,0.00018855,2]
[349925906,1737509432451,-500.0,0.00019164,2]
[349925907,1737509432462,-500.0,0.00019164,2]
[349925908,1737509432472,-6400.23201648,0.00019999,2]
[349925909,1737509432481,-500.0,0.0002,2]
[349925910,1737509432491,-384.51,0.00020436,2]